fUSD/lending_fUSD_20260524
["ID","MTS","AMOUNT","RATE_DAILY","PERIOD"]
[422921016,1779630632000,-601.20712076,0.00016479,2]
[422921018,1779630632000,-601.20712076,0.00016479,2]
[422921019,1779630632000,-601.20712076,0.00016479,2]
[422921015,1779630632000,-552.850445,0.00016479,2]
[422921020,1779630632000,-601.20712076,0.00016479,2]
[422921010,1779630632000,-500.0,0.00016479,2]
[422921017,1779630632000,-601.20712076,0.00016479,2]
[422921055,1779630633000,-500.0,0.00016479,2]
[422921053,1779630633000,-441.08640869,0.00016479,2]
[422921052,1779630633000,-500.0,0.00016479,2]
[422921054,1779630633000,-500.0,0.00016479,2]
[422921048,1779630633000,-500.0,0.00016479,2]
[422921050,1779630633000,-500.0,0.00016479,2]
[422921046,1779630633000,-500.0,0.00016479,2]
[422921049,1779630633000,-500.0,0.00016479,2]
[422921047,1779630633000,-239.55535631,0.00016479,2]
[422921045,1779630633000,-500.0,0.00016479,2]
[422921044,1779630633000,-500.0,0.00016479,2]
[422921043,1779630633000,-500.0,0.00016479,2]
[422921042,1779630633000,-500.0,0.00016479,2]
[422921056,1779630633000,-296.05622262,0.00016479,2]
[422921051,1779630633000,-195.01958125,0.00016479,2]
[422921057,1779630633000,-601.20712075,0.00016479,2]
[422921063,1779630633000,-500.0,0.00016479,2]
[422921061,1779630633000,-245.62237108,0.00016479,2]
[422921074,1779630633000,-4230.82512797,0.0001648,2]
[422921072,1779630633000,-7501.77255853,0.0001648,2]
[422921071,1779630633000,-9870.400022,0.0001648,2]
[422921073,1779630633000,-6731.99889589,0.0001648,2]
[422921070,1779630633000,-593.06525376,0.00016479,2]
[422921069,1779630633000,-601.20712076,0.00016479,2]
[422921059,1779630633000,-500.0,0.00016479,2]
[422921067,1779630633000,-176.0,0.00016479,2]
[422921064,1779630633000,-500.0,0.00016479,2]
[422921066,1779630633000,-601.20712076,0.00016479,2]
[422921065,1779630633000,-202.41424152,0.00016479,2]
[422921060,1779630633000,-202.41424152,0.00016479,2]
[422921062,1779630633000,-601.20712076,0.00016479,2]
[422921058,1779630633000,-500.0,0.00016479,2]
[422921068,1779630633000,-601.20712076,0.00016479,2]
[422921116,1779630638000,-2524.30426327,0.0001648,2]
[422921117,1779630638000,-524.70855744,0.0001648,2]
[422921119,1779630638000,-303.89308898,0.0001648,2]
[422921118,1779630638000,-14707.67259765,0.0001648,2]
[422921121,1779630638000,-2035.4737168,0.0001648,2]
[422921120,1779630638000,-18094.06120652,0.0001648,2]
[422921141,1779630640000,-320.04378153,0.0001648,2]
[422921140,1779630640000,-583.51007265,0.0001648,2]
[422921145,1779630641000,-400.96,0.0001648,2]
[422921147,1779630641000,-1362.87164236,0.0001648,2]
[422921143,1779630641000,-1143.80000001,0.0001648,2]
[422921142,1779630641000,-172.13985834,0.0001648,2]
[422921194,1779630654000,-5000.01,0.0001648,2]
[422921197,1779630654000,-47320.89293169,0.0001648,2]
[422921198,1779630654000,-1444.70542459,0.0001648,2]
[422921199,1779630654000,-10926.0685233,0.0001648,2]
[422921196,1779630654000,-185985.90543837,0.0001648,2]
[422921200,1779630654000,-3222.8993,0.0001648,2]
[422921195,1779630654000,-1843.68905089,0.0001648,2]
[422921201,1779630654000,-2035.29474607,0.0001648,2]
[422921202,1779630667000,-250.0,0.00010803,2]
[422921203,1779630680000,-339.37035117,0.00011883,2]
[422921204,1779630693000,-300.0,0.00016479,2]
[422921206,1779630705000,-5000.01,0.0001648,2]
[422921207,1779630705000,223.07751,0.00027601,120]
[422921209,1779630720000,182.754167,0.00027601,120]
[422921208,1779630720000,-5000.01,0.0001648,2]
[422921210,1779630733000,-5000.01,0.0001648,2]
[422921211,1779630745000,-5000.01,0.0001648,2]
[422921212,1779630758000,-5000.01,0.0001648,2]
[422921213,1779630770000,-5000.01,0.0001648,2]
[422921214,1779630783000,-5000.01,0.0001648,2]
[422921215,1779630801000,-658.88045739,0.0001638,2]
[422921216,1779630820000,-495.64,0.0001647,3]
[422921217,1779630840000,-673.4505546,0.00016471,2]
[422921218,1779630858000,-500.0,0.00016479,2]
[422921219,1779630876000,-300.0,0.00016479,2]
[422921220,1779630895000,-550.0,0.00016479,2]
[422921221,1779630914000,-673.0,0.00016479,2]
[422921222,1779630933000,-187.0,0.00016479,2]
[422921223,1779630951000,-300.0,0.00016479,2]
[422921224,1779630971000,-1200.0,0.00016479,2]
[422921225,1779630990000,-5000.01,0.0001648,2]
[422921226,1779631009000,-5000.01,0.0001648,2]
[422921227,1779631027000,-5000.01,0.00016471,2]
[422921229,1779631046000,209.460529,0.00028038,120]
[422921228,1779631046000,-5000.01,0.00016471,2]
[422921230,1779631064000,-5000.01,0.00016471,2]
[422921231,1779631082000,-5000.01,0.00016471,2]
[422921232,1779631100000,-5000.01,0.00016471,2]
[422921233,1779631120000,-5000.01,0.00016471,2]
[422921235,1779631139000,-5000.01,0.00016471,2]
[422921237,1779631157000,-191.10191603,0.00016398,2]
[422921246,1779631162000,172.73,0.00028057,120]
[422921244,1779631162000,172.73,0.00025506,120]
[422921247,1779631176000,-5000.01,0.00016471,2]
[422921248,1779631195000,-5000.01,0.00016471,2]
[422921249,1779631213000,-191.10191603,0.00016389,2]
[422921250,1779631231000,-191.10191603,0.00016398,2]
[422921251,1779631249000,-1200.0,0.0001647,2]
[422921252,1779631268000,-550.0,0.0001647,2]
[422921254,1779631286000,-5000.01,0.00016471,2]
[422921259,1779631342000,1683.1,0.00028082,120]
[422921265,1779631740000,1000.0,0.00028081,120]
[422921294,1779631831000,-156.2593519,0.00014992,2]
[422921293,1779631831000,-0.8606481,0.00014992,2]
[422921292,1779631831000,-157.12,0.00014243,2]
[422921291,1779631831000,-157.12,0.00013493,2]
[422921288,1779631831000,-157.12,0.00011244,2]
[422921295,1779631831000,-385.4799937,0.00015,2]
[422921287,1779631831000,-250.0,0.00010719,2]
[422921286,1779631831000,-157.12,0.00010495,2]
[422921285,1779631831000,-157.12,9.745e-05,2]
[422921284,1779631831000,-150.0,9.453e-05,2]
[422921289,1779631831000,-157.12,0.00011994,2]
[422921296,1779631831000,-109.7374451,0.00015431,2]
[422921290,1779631831000,-157.12,0.00012743,2]
[422921299,1779631831000,-168.36,0.00015972,2]
[422921297,1779631831000,-58.6225549,0.00015431,2]
[422921328,1779631831000,-449.29595547,0.00016319,2]
[422921306,1779631831000,-750.70404453,0.00016319,2]
[422921301,1779631831000,-163.15,0.00016156,2]
[422921305,1779631831000,-550.0,0.00016319,2]
[422921330,1779631831000,-39563.06766245,0.0001632,2]
[422921304,1779631831000,-1003.1640441,0.00016319,2]
[422921332,1779631831000,-443.39958113,0.0001632,2]
[422921302,1779631831000,-62.4618155,0.00016221,2]
[422921300,1779631831000,-150.0,0.00016036,2]
[422921298,1779631831000,-157.12,0.00015742,2]
[422921303,1779631831000,-1744.0381845,0.00016221,2]
[422921372,1779631832000,-153.0,0.00016477,2]
[422921379,1779631832000,-157.12,0.00016491,2]
[422921373,1779631832000,-153.0,0.00016477,2]
[422921371,1779631832000,-153.0,0.00016477,2]
[422921370,1779631832000,-833.5187877,0.00016471,2]
[422921380,1779631832000,-215.34753388,0.00016512,2]
[422921374,1779631832000,-235.0,0.00016477,2]
[422921376,1779631832000,-205.46020334,0.0001648,2]
[422921368,1779631832000,-12461.9743109,0.00016471,2]
[422921364,1779631832000,-2854.37340815,0.0001647,2]
[422921365,1779631832000,-9745.39195652,0.0001647,2]
[422921361,1779631832000,-230.15,0.00016438,2]
[422921363,1779631832000,-5280.85723873,0.0001647,2]
[422921359,1779631832000,-296.88,0.00016356,2]
[422921366,1779631832000,-588.94698,0.0001647,2]
[422921378,1779631832000,-208.8304494,0.00016486,2]
[422921360,1779631832000,-171.4,0.00016438,2]
[422921362,1779631832000,-5693.1541401,0.0001647,2]
[422921358,1779631832000,-7106.14351012,0.0001632,2]
[422921367,1779631832000,-20894.2181664,0.00016471,2]
[422921377,1779631832000,-299.52297409,0.0001648,2]
[422921369,1779631832000,-3141.05056,0.00016471,2]
[422921382,1779631832000,-160.0,0.00016552,2]
[422921375,1779631832000,-153.0,0.00016477,2]
[422921398,1779631832000,-171.4,0.0001841,2]
[422921400,1779631832000,-7608.70584721,0.00018533,2]
[422921397,1779631832000,-160.27,0.00018101,2]
[422921394,1779631832000,-1195.0,0.00017926,2]
[422921399,1779631832000,-240.55322759,0.000185,2]
[422921396,1779631832000,-296.88,0.00017992,2]
[422921392,1779631832000,-151.0,0.00017797,2]
[422921395,1779631832000,-157.12,0.00017991,2]
[422921390,1779631832000,-935.0,0.00017429,2]
[422921393,1779631832000,-1020.0,0.000178,3]
[422921388,1779631832000,-296.88,0.00017174,2]
[422921384,1779631832000,-1000.0,0.000168,2]
[422921386,1779631832000,-168.36,0.00017055,2]
[422921391,1779631832000,-296.88,0.00017583,2]
[422921401,1779631832000,-1108.61757386,0.00018533,2]
[422921387,1779631832000,-377.25369103,0.00017055,2]
[422921383,1779631832000,-296.88,0.00016765,2]
[422921385,1779631832000,-160.27,0.0001697,2]
[422921381,1779631832000,-168.36,0.00016514,2]
[422921389,1779631832000,-157.12,0.00017241,2]
[422921405,1779631837000,-291.11938735,0.00018533,2]
[422921403,1779631837000,-500.0,0.00016437,2]
[422921404,1779631837000,-8.40358673,0.00018533,2]
[422921407,1779631837000,-1800.45849881,0.00018533,2]
[422921409,1779631837000,-259.52441885,0.00018533,2]
[422921408,1779631837000,-1004.33851593,0.00018533,2]
[422921411,1779631837000,-417.73447791,0.00018533,2]
[422921410,1779631837000,-654.12549223,0.00018533,2]
[422921406,1779631837000,-1282.66657893,0.00018533,2]
[422921443,1779631839000,-4025.69455052,0.00019239,2]
[422921450,1779631839000,-15562.62,0.00019777,2]
[422921448,1779631839000,-163.96,0.00019446,2]
[422921440,1779631839000,-163.15,0.00018849,2]
[422921441,1779631839000,-160.27,0.00019232,2]
[422921447,1779631839000,-706.04,0.00019339,2]
[422921442,1779631839000,-500.0,0.00019237,2]
[422921436,1779631839000,-414.0,0.0001862,2]
[422921437,1779631839000,-9127.54,0.0001872,2]
[422921434,1779631839000,-1565.57,0.00018533,2]
[422921433,1779631839000,-9414.43,0.00018533,2]
[422921435,1779631839000,-299.99,0.00018533,4]
[422921438,1779631839000,-157.12,0.0001874,2]
[422921432,1779631839000,-5863.80859627,0.00018533,2]
[422921439,1779631839000,-1020.0,0.000188,4]
[422921444,1779631839000,-150.99,0.00019339,2]
[422921451,1779631839000,-1002.21,0.000198,5]
[422921446,1779631839000,-4999.99,0.00019339,2]
[422921445,1779631839000,-20827.58,0.00019339,2]
[422921465,1779631839000,-189.707202,0.00021479,2]
[422921463,1779631839000,-150.0,0.00021205,2]
[422921462,1779631839000,-4025.69455046,0.00021199,2]
[422921456,1779631839000,-200.0,0.0002016,2]
[422921452,1779631839000,-230.0,0.0002,9]
[422921455,1779631839000,-9214.9,0.00020025,2]
[422921464,1779631839000,-244.54444,0.00021479,2]
[422921454,1779631839000,-161.0,0.0002,2]
[422921460,1779631839000,-166.7,0.00020625,2]
[422921453,1779631839000,-211.2,0.0002,5]
[422921458,1779631839000,-171.4,0.00020381,2]
[422921461,1779631839000,-161.0,0.00021,2]
[422921457,1779631839000,-160.27,0.00020364,2]
[422921459,1779631839000,-172.73,0.00020405,2]
[422921449,1779631839000,-157.12,0.0001949,2]
[422921507,1779631840000,-500.0,0.00021915,2]
[422921508,1779631840000,-500.0,0.00021915,2]
[422921506,1779631840000,-500.0,0.00021915,2]
[422921511,1779631840000,-500.0,0.00021915,2]
[422921503,1779631840000,-500.0,0.00021915,2]
[422921501,1779631840000,-500.0,0.00021915,2]
[422921500,1779631840000,-500.0,0.00021915,2]
[422921493,1779631840000,-500.0,0.00021915,2]
[422921491,1779631840000,-500.0,0.00021915,2]
[422921496,1779631840000,-500.0,0.00021915,2]
[422921505,1779631840000,-500.0,0.00021915,2]
[422921502,1779631840000,-500.0,0.00021915,2]
[422921513,1779631840000,-500.0,0.00021915,2]
[422921519,1779631840000,-161.0,0.00022,2]
[422921504,1779631840000,-500.0,0.00021915,2]
[422921515,1779631840000,-500.0,0.00021915,2]
[422921518,1779631840000,-5307.9,0.00022,10]
[422921517,1779631840000,-5000.0,0.00021918,2]
[422921523,1779631840000,-190.82542213,0.00022551,2]
[422921524,1779631840000,-160.27,0.00022626,2]
[422921497,1779631840000,-500.0,0.00021915,2]
[422921525,1779631840000,-9127.54,0.00022691,2]
[422921522,1779631840000,-150.0,0.00022551,2]
[422921520,1779631840000,-500.0,0.00022038,2]
[422921516,1779631840000,-500.0,0.00021915,2]
[422921526,1779631840000,-1806.5,0.00022709,2]
[422921521,1779631840000,-171.4,0.00022353,2]
[422921509,1779631840000,-500.0,0.00021915,2]
[422921494,1779631840000,-500.0,0.00021915,2]
[422921488,1779631840000,-500.0,0.00021915,2]
[422921495,1779631840000,-500.0,0.00021915,2]
[422921529,1779631840000,-161.0,0.00023,2]
[422921467,1779631840000,-163.15,0.00021541,2]
[422921466,1779631840000,-160.27,0.00021495,2]
[422921470,1779631840000,-151.0,0.00021775,2]
[422921474,1779631840000,-500.0,0.00021915,2]
[422921471,1779631840000,-1500.0,0.000219,2]
[422921473,1779631840000,-500.0,0.00021915,2]
[422921469,1779631840000,-166.7,0.0002176,2]
[422921472,1779631840000,-500.0,0.00021915,2]
[422921468,1779631840000,-200.13400693,0.00021586,2]
[422921480,1779631840000,-500.0,0.00021915,2]
[422921479,1779631840000,-500.0,0.00021915,2]
[422921476,1779631840000,-500.0,0.00021915,2]
[422921475,1779631840000,-500.0,0.00021915,2]
[422921481,1779631840000,-500.0,0.00021915,2]
[422921482,1779631840000,-500.0,0.00021915,2]
[422921477,1779631840000,-500.0,0.00021915,2]
[422921483,1779631840000,-500.0,0.00021915,2]
[422921484,1779631840000,-648.14742703,0.00021915,2]
[422921486,1779631840000,-500.0,0.00021915,2]
[422921485,1779631840000,-500.0,0.00021915,2]
[422921478,1779631840000,-500.0,0.00021915,2]
[422921498,1779631840000,-500.0,0.00021915,2]
[422921487,1779631840000,-500.0,0.00021915,2]
[422921489,1779631840000,-500.0,0.00021915,2]
[422921499,1779631840000,-500.0,0.00021915,2]
[422921490,1779631840000,-500.0,0.00021915,2]
[422921492,1779631840000,-500.0,0.00021915,2]
[422921527,1779631840000,-166.7,0.00022895,2]
[422921576,1779631840000,-215.09191753,0.00025484,2]
[422921538,1779631840000,-17880.6226034,0.00023607,2]
[422921560,1779631840000,-424.27,0.00024174,2]
[422921568,1779631840000,-173.0,0.00025,2]
[422921565,1779631840000,-166.56,0.00024658,2]
[422921566,1779631840000,-525.0,0.00024698,10]
[422921567,1779631840000,-500.0,0.00024838,2]
[422921569,1779631840000,-501.0,0.00025082,2]
[422921570,1779631840000,-4025.69455046,0.00025119,2]
[422921572,1779631840000,-3635.0,0.00025195,2]
[422921571,1779631840000,-927.0,0.00025188,2]
[422921573,1779631840000,-931.0,0.00025195,2]
[422921591,1779631840000,-152.0,0.00026475,7]
[422921575,1779631840000,-215.09191753,0.00025484,2]
[422921574,1779631840000,-297.0,0.00025221,31]
[422921579,1779631840000,-215.09191753,0.00025484,2]
[422921584,1779631840000,-691.15,0.00025736,2]
[422921580,1779631840000,-205.02650575,0.00025495,31]
[422921587,1779631840000,-171.4,0.00026296,2]
[422921585,1779631840000,-424.27,0.00025786,2]
[422921582,1779631840000,-487.0,0.00025736,2]
[422921583,1779631840000,-487.0,0.00025736,2]
[422921578,1779631840000,-215.09191753,0.00025484,2]
[422921586,1779631840000,-233.06,0.000258,14]
[422921588,1779631840000,-159.75,0.0002635,2]
[422921581,1779631840000,-501.0,0.00025736,2]
[422921590,1779631840000,-152.0,0.00026438,7]
[422921589,1779631840000,-501.0,0.0002639,3]
[422921537,1779631840000,-5693.1541401,0.00023607,2]
[422921558,1779631840000,-161.0,0.00024,2]
[422921557,1779631840000,-5818.71491346,0.00023892,2]
[422921577,1779631840000,-215.09191753,0.00025484,2]
[422921559,1779631840000,-166.7,0.0002403,2]
[422921562,1779631840000,-171.4,0.00024324,2]
[422921532,1779631840000,-4025.69455046,0.00023159,2]
[422921534,1779631840000,-785.01,0.00023368,2]
[422921528,1779631840000,-172.73,0.00022956,2]
[422921533,1779631840000,-10933.28,0.00023368,2]
[422921531,1779631840000,-209.46053,0.00023136,14]
[422921535,1779631840000,-1188.0,0.00023567,5]
[422921536,1779631840000,-151.0,0.00023567,7]
[422921550,1779631840000,-10000.0,0.00023892,2]
[422921541,1779631840000,-673.4505546,0.00023608,2]
[422921542,1779631840000,-70894.3181664,0.00023608,2]
[422921551,1779631840000,-10000.0,0.00023892,2]
[422921543,1779631840000,-12461.9743109,0.00023608,2]
[422921539,1779631840000,-588.94698,0.00023607,2]
[422921530,1779631840000,-182.754168,0.00023136,14]
[422921561,1779631840000,-163.15,0.00024234,2]
[422921546,1779631840000,-151.0,0.00023667,7]
[422921553,1779631840000,-10000.0,0.00023892,2]
[422921554,1779631840000,-10000.0,0.00023892,2]
[422921564,1779631840000,-169.78,0.00024658,2]
[422921563,1779631840000,-1000.0,0.00024658,2]
[422921555,1779631840000,-10000.0,0.00023892,2]
[422921556,1779631840000,-10000.0,0.00023892,2]
[422921548,1779631840000,-10000.0,0.00023892,2]
[422921544,1779631840000,-3141.05056,0.00023608,2]
[422921547,1779631840000,-10000.0,0.00023892,2]
[422921545,1779631840000,-833.5187877,0.00023608,2]
[422921549,1779631840000,-560.38385811,0.00023892,2]
[422921552,1779631840000,-10000.0,0.00023892,2]
[422921608,1779631841000,-179.29883903,0.00026973,2]
[422921613,1779631841000,-150.0,0.00026973,2]
[422921612,1779631841000,-500.0,0.00026973,2]
[422921611,1779631841000,-150.0,0.00026973,2]
[422921614,1779631841000,-500.0,0.00026973,2]
[422921622,1779631841000,-500.0,0.00026973,2]
[422921615,1779631841000,-500.0,0.00026973,2]
[422921618,1779631841000,-500.0,0.00026973,2]
[422921616,1779631841000,-157.0337685,0.00026973,2]
[422921623,1779631841000,-500.0,0.00026973,2]
[422921617,1779631841000,-500.0,0.00026973,2]
[422921610,1779631841000,-500.0,0.00026973,2]
[422921619,1779631841000,-500.0,0.00026973,2]
[422921624,1779631841000,-357.67045328,0.00026973,2]
[422921596,1779631841000,-500.0,0.00026973,2]
[422921606,1779631841000,-297.8008769,0.00026973,2]
[422921621,1779631841000,-244.44970555,0.00026973,2]
[422921593,1779631841000,-166.67,0.00026682,2]
[422921592,1779631841000,-9800.19,0.000265,2]
[422921595,1779631841000,-500.0,0.00026973,2]
[422921594,1779631841000,-500.0,0.00026973,2]
[422921597,1779631841000,-500.0,0.00026973,2]
[422921601,1779631841000,-500.0,0.00026973,2]
[422921598,1779631841000,-150.0,0.00026973,2]
[422921602,1779631841000,-150.0,0.00026973,2]
[422921600,1779631841000,-192.20233017,0.00026973,2]
[422921604,1779631841000,-150.0,0.00026973,2]
[422921607,1779631841000,-150.0,0.00026973,2]
[422921603,1779631841000,-318.29697578,0.00026973,2]
[422921609,1779631841000,-500.0,0.00026973,2]
[422921599,1779631841000,-500.0,0.00026973,2]
[422921620,1779631841000,-500.0,0.00026973,2]
[422921605,1779631841000,-150.0,0.00026973,2]
[422921628,1779631841000,-500.0,0.00026973,2]
[422921650,1779631841000,-500.0,0.00026973,2]
[422921652,1779631841000,-589.13369332,0.00026973,2]
[422921651,1779631841000,-500.0,0.00026973,2]
[422921644,1779631841000,-500.0,0.00026973,2]
[422921647,1779631841000,-500.0,0.00026973,2]
[422921653,1779631841000,-500.0,0.00026973,2]
[422921649,1779631841000,-500.0,0.00026973,2]
[422921646,1779631841000,-500.0,0.00026973,2]
[422921655,1779631841000,-500.0,0.00026973,2]
[422921645,1779631841000,-500.0,0.00026973,2]
[422921656,1779631841000,-500.0,0.00026973,2]
[422921658,1779631841000,-500.0,0.00026973,2]
[422921657,1779631841000,-500.0,0.00026973,2]
[422921625,1779631841000,-500.0,0.00026973,2]
[422921654,1779631841000,-500.0,0.00026973,2]
[422921638,1779631841000,-500.0,0.00026973,2]
[422921648,1779631841000,-500.0,0.00026973,2]
[422921641,1779631841000,-500.0,0.00026973,2]
[422921633,1779631841000,-436.17191867,0.00026973,2]
[422921642,1779631841000,-500.0,0.00026973,2]
[422921631,1779631841000,-500.0,0.00026973,2]
[422921629,1779631841000,-500.0,0.00026973,2]
[422921630,1779631841000,-500.0,0.00026973,2]
[422921627,1779631841000,-500.0,0.00026973,2]
[422921626,1779631841000,-500.0,0.00026973,2]
[422921632,1779631841000,-500.0,0.00026973,2]
[422921636,1779631841000,-500.0,0.00026973,2]
[422921637,1779631841000,-500.0,0.00026973,2]
[422921640,1779631841000,-500.0,0.00026973,2]
[422921635,1779631841000,-500.0,0.00026973,2]
[422921639,1779631841000,-500.0,0.00026973,2]
[422921643,1779631841000,-500.0,0.00026973,2]
[422921634,1779631841000,-63.82808133,0.00026973,2]
[422921678,1779631842000,-500.0,0.00026973,2]
[422921683,1779631842000,-159.06355203,0.00026973,2]
[422921677,1779631842000,-500.0,0.00026973,2]
[422921682,1779631842000,-340.93644797,0.00026973,2]
[422921681,1779631842000,-500.0,0.00026973,2]
[422921680,1779631842000,-51.64517409,0.00026973,2]
[422921684,1779631842000,-343.21785169,0.00026973,2]
[422921691,1779631842000,-150.0,0.00026973,2]
[422921686,1779631842000,-500.0,0.00026973,2]
[422921687,1779631842000,-500.0,0.00026973,2]
[422921685,1779631842000,-500.0,0.00026973,2]
[422921688,1779631842000,-150.0,0.00026973,2]
[422921690,1779631842000,-150.0,0.00026973,2]
[422921679,1779631842000,-448.35482591,0.00026973,2]
[422921689,1779631842000,-382.05019127,0.00026973,2]
[422921676,1779631842000,-305.29180504,0.00026973,2]
[422921659,1779631842000,-500.0,0.00026973,2]
[422921673,1779631842000,-500.0,0.00026973,2]
[422921668,1779631842000,-500.0,0.00026973,2]
[422921693,1779631842000,-500.0,0.00026973,2]
[422921660,1779631842000,-302.44064206,0.00026973,2]
[422921666,1779631842000,-500.0,0.00026973,2]
[422921662,1779631842000,-500.0,0.00026973,2]
[422921663,1779631842000,-70.88654206,0.00026973,2]
[422921661,1779631842000,-197.55935794,0.00026973,2]
[422921667,1779631842000,-179.73514104,0.00026973,2]
[422921665,1779631842000,-500.0,0.00026973,2]
[422921664,1779631842000,-429.11345794,0.00026973,2]
[422921669,1779631842000,-500.0,0.00026973,2]
[422921674,1779631842000,-194.70819496,0.00026973,2]
[422921675,1779631842000,-702.0,0.00025358,10]
[422921670,1779631842000,-500.0,0.00026973,2]
[422921672,1779631842000,-500.0,0.00026973,2]
[422921671,1779631842000,-500.0,0.00026973,2]
[422921698,1779631842000,-500.0,0.00026973,2]
[422921699,1779631842000,-500.0,0.00026973,2]
[422921695,1779631842000,-500.0,0.00026973,2]
[422921718,1779631842000,-150.0,0.00027,2]
[422921721,1779631842000,-4025.69455046,0.00027079,2]
[422921724,1779631842000,-2993.64,0.00027397,10]
[422921723,1779631842000,-1500.0,0.00027397,2]
[422921722,1779631842000,-500.0,0.00027096,2]
[422921733,1779631842000,-166.56,0.0002755,2]
[422921717,1779631842000,-150.0,0.00026973,2]
[422921727,1779631842000,-1534.42944089,0.00027544,7]
[422921692,1779631842000,-189.08975406,0.00026973,2]
[422921731,1779631842000,-207.7,0.0002755,30]
[422921729,1779631842000,-203.59,0.0002755,30]
[422921725,1779631842000,-5708.67,0.00027397,10]
[422921730,1779631842000,-189.88,0.0002755,30]
[422921728,1779631842000,-691.94,0.0002755,30]
[422921726,1779631842000,-150.0,0.00027521,2]
[422921715,1779631842000,-500.0,0.00026973,2]
[422921732,1779631842000,-671.24,0.0002755,30]
[422921716,1779631842000,-350.0,0.00026973,2]
[422921713,1779631842000,-500.0,0.00026973,2]
[422921694,1779631842000,-500.0,0.00026973,2]
[422921697,1779631842000,-500.0,0.00026973,2]
[422921700,1779631842000,-438.22730272,0.00026973,2]
[422921696,1779631842000,-263.19957962,0.00026973,2]
[422921707,1779631842000,-128.61841208,0.00026973,2]
[422921706,1779631842000,-195.84355,0.0002156,2]
[422921701,1779631842000,-21.38158792,0.00026973,2]
[422921712,1779631842000,-500.0,0.00026973,2]
[422921711,1779631842000,-217.14255649,0.00026973,2]
[422921710,1779631842000,-150.0,0.00026973,2]
[422921708,1779631842000,-150.0,0.00026973,2]
[422921719,1779631842000,-548.0,0.0002701,5]
[422921714,1779631842000,-264.0,0.00026973,10]
[422921720,1779631842000,-501.0,0.00027044,4]
[422921709,1779631842000,-150.0,0.00026973,2]
[422921738,1779631843000,-501.0,0.00027697,4]
[422921737,1779631843000,-500.0,0.00027638,2]
[422921734,1779631843000,-197.33,0.0002755,30]
[422921735,1779631843000,-170.65,0.0002755,2]
[422921740,1779631843000,-203.59,0.00027711,7]
[422921741,1779631843000,-189.88,0.00027711,7]
[422921736,1779631843000,-868.241,0.0002763,17]
[422921746,1779631843000,-1660.87,0.00027844,2]
[422921743,1779631843000,-671.24,0.00027711,7]
[422921739,1779631843000,-691.94,0.00027711,7]
[422921745,1779631843000,-9800.19,0.000278,2]
[422921744,1779631843000,-197.33,0.00027711,7]
[422921747,1779631843000,-689.21352921,0.00027872,2]
[422921749,1779631843000,-300.1,0.00025401,2]
[422921748,1779631843000,-170.66,0.00024658,2]
[422921742,1779631843000,-207.7,0.00027711,7]
[422921763,1779631845000,-5945.66351376,0.00028,2]
[422921754,1779631845000,-5773.958,0.00025401,2]
[422921755,1779631845000,-646.86,0.0002755,30]
[422921756,1779631845000,-208.59,0.0002755,30]
[422921761,1779631845000,-197.33,0.00027872,2]
[422921757,1779631845000,-200.31,0.0002755,30]
[422921760,1779631845000,-671.24,0.00027872,2]